bitfinex/quotes_ETHUSD_20250130
["timestamp","ask_amount","ask_price","bid_price","bid_amount"]
[1738249433838,3.05941,3268.6,3267.9,0.6462]
[1738249434082,3.05938,3268.7,3268.1,3.05986]
[1738249434290,3.05919,3268.9,3268.0,3.05989]
[1738249434462,3.05929,3268.8,3268.2,3.05978]
[1738249434873,3.05929,3268.8,3268.0,3.05989]
[1738249435195,3.05945,3268.6,3267.9,0.6462]
[1738249435504,3.05945,3268.6,3267.8,3.06014]
[1738249435505,3.05966,3268.4,3267.8,3.06014]
[1738249435805,3.05966,3268.4,3267.7,3.06024]
[1738249435806,3.0596,3268.4,3267.7,3.06024]
[1738249436006,3.05945,3268.6,3267.9,3.06006]
[1738249436348,3.05957,3268.5,3267.8,3.06013]
[1738249436671,3.0596,3268.4,3267.7,3.06024]
[1738249436875,0.0075,3268.5,3267.5,0.6462]
[1738249437088,3.0603,3267.7,3267.1,0.6462]
[1738249437251,3.0603,3267.7,3267.1,3.70701]
[1738249437615,0.7616,3268.0,3266.7,0.1671596]
[1738249437616,0.33654929,3267.6,3266.7,0.1671596]
[1738249437816,3.06108,3266.9,3266.7,0.1671596]
[1738249437989,3.82242,3267.1,3266.7,0.1671596]
[1738249438191,3.06107,3266.9,3266.7,0.1671596]
[1738249438918,3.06102,3266.9,3266.7,0.1671596]
[1738249439123,0.7616,3267.9,3267.0,3.0609]
[1738249439332,3.06038,3267.6,3267.0,3.7071]
[1738249439681,3.06054,3267.4,3266.8,3.06108]
[1738249440015,3.06064,3267.3,3266.7,3.2283496]
[1738249440220,3.06038,3267.6,3266.7,0.1671596]
[1738249440402,3.06057,3267.4,3266.8,3.06109]
[1738249440607,3.06057,3267.4,3266.7,3.2283196]
[1738249440833,3.06063,3267.3,3266.7,0.1671596]
[1738249441041,3.06109,3266.8,3266.7,0.1671596]
[1738249441384,0.8012,3267.0,3266.7,0.1671596]
[1738249441715,0.8012,3267.3,3266.8,3.06109]
[1738249441885,0.8012,3267.3,3266.7,0.1671596]
[1738249442080,3.86188,3267.3,3266.7,0.1671596]
[1738249442302,3.06087,3267.1,3266.7,0.1671596]
[1738249442493,3.06093,3267.0,3266.7,0.1671596]
[1738249442699,4.2786518,3267.3,3266.7,0.1671596]
[1738249442900,3.06083,3267.1,3266.7,0.1671596]
[1738249443510,3.06109,3266.8,3266.7,0.1671596]
[1738249443715,3.6733,3266.8,3266.7,0.1671596]
[1738249444920,7.50401929,3266.8,3266.7,0.1671596]
[1738249445225,0.7954,3265.6,3264.9,0.6462]
[1738249445427,0.7954,3265.6,3264.8,3.06288]
[1738249445585,0.62707908,3265.5,3264.9,3.06279]
[1738249445936,0.7554,3266.6,3265.0,0.03062407]
[1738249446227,3.0,3266.5,3265.1,0.6463]
[1738249446422,3.06244,3265.4,3264.8,3.06296]
[1738249446610,3.06244,3265.4,3264.6,0.6463]
[1738249446809,3.06244,3265.4,3264.2,0.6463]
[1738249446810,0.597612,3265.2,3264.2,0.6463]
[1738249447010,0.597612,3265.2,3263.7,0.6463]
[1738249447224,0.60477966,3264.6,3263.8,0.03062873]
[1738249447429,0.60477966,3264.6,3263.7,0.6463]
[1738249447430,3.0,3265.1,3263.9,3.06376]
[1738249447589,3.0,3265.2,3263.9,3.06376]
[1738249447790,3.0,3265.2,3263.7,3.71021]
[1738249447791,3.06311,3264.7,3264.0,3.06372]
[1738249447989,3.06311,3264.7,3263.8,3.06391]
[1738249448212,0.40451,3265.1,3263.9,3.06381]
[1738249448411,3.06354,3264.2,3263.7,0.6463]
[1738249448624,0.7602,3264.5,3263.4,0.1671596]
[1738249448864,6.82439,3263.5,3263.4,0.1671596]
[1738249448988,8.045237,3263.5,3263.4,0.1671596]
[1738249449614,7.813237,3263.5,3263.4,0.1671596]
[1738249449928,1.15451,3265.1,3263.6,3.06402]
[1738249449929,0.7711,3264.2,3263.6,3.06402]
[1738249450135,0.7711,3264.8,3263.6,3.06402]
[1738249450300,3.06333,3264.5,3263.6,3.06402]
[1738249450496,3.06337,3264.4,3263.5,0.55]
[1738249450821,3.669707,3264.4,3263.6,0.62095841]
[1738249451034,3.06353,3264.2,3263.4,0.1671596]
[1738249451399,3.669697,3264.4,3263.4,0.1671596]
[1738249451822,3.06399,3263.8,3263.4,0.1671596]
[1738249452021,3.0641,3263.7,3263.4,0.1671596]
[1738249452220,0.233,3264.1,3263.6,3.06409]
[1738249452435,0.7792,3264.2,3263.6,3.06408]
[1738249452745,6.12639,3264.6,3263.8,3.06387]
[1738249452923,0.015,3264.4,3263.4,0.1671596]
[1738249453093,3.06363,3264.1,3263.4,0.1671596]
[1738249453298,3.0,3264.5,3263.4,0.19780082]
[1738249453536,3.0,3264.3,3263.7,3.06399]
[1738249453899,3.234,3264.5,3263.8,3.06387]
[1738249454122,3.06327,3264.5,3263.8,3.06387]
[1738249454336,3.7506,3264.7,3263.9,3.06381]
[1738249454633,3.7506,3264.7,3263.7,0.03063599]
[1738249454634,6.81368,3264.7,3263.7,3.06399]
[1738249454797,0.7506,3264.7,3263.6,3.71033]
[1738249454998,3.06368,3264.1,3263.5,0.62592559]
[1738249455197,3.06419,3263.5,3263.4,0.1671596]
[1738249455403,6.370609,3263.5,3263.4,0.1671596]
[1738249457279,6.385609,3263.5,3263.4,0.1671596]
[1738249458242,6.370609,3263.5,3263.4,0.1671596]
[1738249458448,6.29819,3263.5,3263.4,0.1671596]
[1738249458954,6.06419,3263.5,3263.4,0.1671596]
[1738249460889,6.07919,3263.5,3263.4,0.1671596]
[1738249461089,6.06419,3263.5,3263.4,0.1671596]
[1738249461656,3.0,3263.5,3263.4,0.1671596]
[1738249462303,3.06392,3263.8,3263.4,0.1671596]
[1738249463965,6.88019,3263.5,3263.4,0.1671596]
[1738249464396,6.89519,3263.5,3263.4,0.1671596]
[1738249464713,6.88019,3263.5,3263.4,0.1671596]
[1738249464917,0.636065,3263.8,3263.4,0.1671596]
[1738249465097,3.06369,3264.1,3263.4,0.1671596]
[1738249465263,3.0,3263.9,3263.4,0.1671596]
[1738249465463,3.06419,3263.5,3263.4,0.1671596]
[1738249465816,3.84369,3263.5,3263.4,0.1671596]
[1738249466367,3.0,3263.7,3263.4,0.1671596]
[1738249466569,3.06415,3263.6,3263.4,0.1671596]
[1738249466810,3.55064859,3263.6,3263.4,0.1671596]
[1738249467166,3.06419,3263.5,3263.4,0.1671596]
[1738249467791,0.48649859,3263.6,3263.4,0.1671596]
[1738249468183,3.0,3263.7,3263.4,0.1671596]
[1738249468388,3.06412,3263.6,3263.4,0.1671596]
[1738249468970,1.0214,3264.2,3263.5,3.06416]
[1738249469173,1.0214,3264.2,3263.4,0.1671596]
[1738249469174,0.7884,3264.2,3263.4,0.8134596]
[1738249469366,0.7884,3264.2,3263.4,0.1671596]
[1738249469367,0.81891929,3264.2,3263.4,0.1671596]
[1738249469567,3.06405,3263.7,3263.4,0.1671596]
[1738249469872,0.81891929,3264.2,3263.4,0.1671596]
[1738249469873,3.06419,3263.5,3263.4,0.1671596]
[1738249470188,0.306405,3263.6,3263.4,0.1671596]
[1738249470390,3.370525,3263.6,3263.4,0.1671596]
[1738249470877,3.06412,3263.6,3263.4,0.1671596]
[1738249471071,3.85199,3264.2,3263.5,3.0641]
[1738249471475,7.06720291,3264.7,3263.4,0.8134596]
[1738249471476,3.06328,3264.5,3263.4,0.8134596]
[1738249471635,0.7608,3264.6,3263.9,3.0638]
[1738249471839,0.015,3265.1,3264.1,0.6463]
[1738249471840,0.766,3265.1,3264.1,0.6463]
[1738249472054,0.766,3265.1,3264.7,3.06299]
[1738249472350,0.766,3265.1,3264.1,0.6463]
[1738249472351,3.766,3265.1,3264.5,3.06321]
[1738249472639,3.06257,3265.3,3264.8,3.06297]
[1738249472938,3.06257,3265.3,3264.2,3.06353]
[1738249472939,3.06316,3264.6,3264.1,0.6463]
[1738249473085,3.06281,3265.0,3264.3,3.06337]
[1738249473280,0.71239,3265.3,3264.6,3.0631]
[1738249473495,0.766,3265.4,3264.8,3.0629]
[1738249473707,3.766,3265.4,3264.9,3.06281]
[1738249473916,3.766,3265.4,3264.3,0.55]
[1738249473917,0.03051929,3265.4,3264.3,0.55]
[1738249474082,3.0626,3265.2,3264.6,3.06316]
[1738249474287,3.09293929,3265.4,3264.6,3.06316]
[1738249474534,3.70845822,3265.4,3264.6,3.06316]
[1738249474713,3.06242,3265.4,3264.6,3.06316]
[1738249475089,3.0,3265.4,3264.6,3.06316]
[1738249475307,0.233,3265.7,3265.1,3.06265]
[1738249475624,3.82715,3265.8,3265.1,3.06265]
[1738249475944,8.10662983,3265.8,3265.1,3.06265]
[1738249476535,3.06223,3265.6,3265.0,3.06278]
[1738249476915,3.06237,3265.5,3264.7,3.06303]
[1738249477118,3.06213,3265.7,3265.1,3.06269]
[1738249478014,3.06228,3265.6,3264.9,3.0628]
[1738249478348,0.612441,3265.5,3265.0,3.06278]
[1738249478529,3.06215,3265.7,3265.0,3.06272]
[1738249479325,3.06222,3265.6,3265.0,3.06272]
[1738249479525,0.7532,3266.5,3266.0,3.06183]
[1738249479725,1.1699918,3267.3,3266.7,3.06111]
[1738249480127,0.7532,3267.3,3266.3,0.6463]
[1738249480310,3.7532,3267.3,3266.7,3.06112]
[1738249480647,3.06073,3267.2,3266.3,4.33188581]
[1738249480949,3.06073,3267.2,3265.8,3.0]
[1738249480950,3.06113,3266.8,3266.1,3.06174]
[1738249481155,3.07584,3267.1,3266.3,3.0615]
[1738249481498,0.69203693,3267.1,3266.3,3.0615]
[1738249481613,0.777,3267.8,3266.4,0.03061134]
[1738249481816,0.03051929,3267.7,3266.9,3.06096]
[1738249482126,3.06045,3267.5,3266.8,3.70736]
[1738249482330,3.09077929,3267.7,3266.8,3.70736]
[1738249482331,3.06026,3267.7,3266.8,3.70736]
[1738249482527,3.749993,3267.7,3267.0,3.06088]
[1738249482738,0.689733,3267.7,3267.1,3.0608]
[1738249483050,3.06036,3267.6,3266.9,3.061]
[1738249483383,0.689733,3267.7,3267.1,3.06081]
[1738249483663,3.750003,3267.7,3266.9,3.061]
[1738249483963,3.8130603,3267.6,3267.0,3.06089]
[1738249484111,0.7527003,3267.6,3267.0,3.06081]
[1738249484855,0.7527003,3267.6,3266.9,3.061]
[1738249485056,0.7527003,3267.6,3267.0,3.06087]
[1738249485267,0.7527003,3267.6,3266.9,3.061]
[1738249485413,0.7527003,3267.6,3266.4,3.06147]
[1738249485414,3.06079,3267.2,3266.4,3.06147]
[1738249485613,3.09130929,3267.2,3266.4,3.06147]
[1738249485825,3.09130929,3267.2,3266.5,3.06135]
[1738249486047,3.06079,3267.2,3266.5,3.06135]
[1738249486229,3.06079,3267.2,3266.6,3.06121]
[1738249486423,3.674426,3267.2,3266.6,3.06121]
[1738249486819,0.613636,3267.2,3266.6,3.06121]
[1738249487014,0.613636,3267.2,3266.8,3.06108]
[1738249487260,0.613636,3267.2,3266.6,6.12243]
[1738249487455,0.613636,3267.2,3266.7,3.06118]
[1738249487936,0.613636,3267.2,3266.6,3.06121]
[1738249488144,3.06036,3267.6,3266.2,0.60883285]
[1738249488145,0.8115,3268.6,3266.8,6.76848]
[1738249488347,3.29169,3268.4,3267.7,3.06024]
[1738249488520,3.87097,3268.6,3267.9,3.05997]
[1738249488715,3.87097,3268.6,3267.7,3.06021]
[1738249488915,0.8115,3268.6,3268.0,3.05994]
[1738249489154,3.248,3269.2,3268.5,3.0595]
[1738249489742,3.248,3269.2,3268.3,3.05968]
[1738249489743,3.05904,3269.0,3268.3,3.05968]
[1738249489964,0.0075,3269.1,3268.5,3.05949]
[1738249490259,6.30688,3269.2,3268.4,3.0596]
[1738249490461,3.0,3269.1,3268.4,3.0596]
[1738249490617,3.68385,3269.0,3268.4,3.0596]
[1738249490818,3.05913,3268.9,3268.2,3.70608]
[1738249491125,0.6248,3269.0,3268.3,3.05969]
[1738249491467,3.05944,3268.6,3267.9,0.6463]
[1738249491616,0.015,3268.7,3267.9,0.6463]
[1738249491961,3.68384,3269.0,3267.9,0.6463]
[1738249491962,3.68393,3269.0,3268.1,3.05985]
[1738249492155,3.05915,3268.9,3268.1,3.05985]
[1738249492575,3.05924,3268.8,3268.1,3.05985]
[1738249493554,3.05921,3268.9,3268.1,3.05985]
[1738249493725,3.05929,3268.8,3268.1,3.05985]
[1738249493925,0.305929,3268.7,3268.1,3.05985]
[1738249494165,0.305929,3268.7,3268.0,3.05997]
[1738249494497,0.6248,3269.0,3268.0,0.55]
[1738249494702,6.30688,3269.2,3268.5,3.05944]
[1738249494917,3.836794,3270.6,3268.3,3.05967]
[1738249494918,0.8211,3269.8,3268.3,0.03059232]
[1738249495084,3.05848,3269.6,3268.9,3.05904]
[1738249495400,3.05858,3269.5,3268.9,3.05904]
[1738249496160,3.05869,3269.4,3268.7,3.05929]
[1738249496542,0.8211,3269.8,3268.6,0.61244176]
[1738249496669,0.8211,3269.8,3268.9,3.05913]
[1738249496869,3.05847,3269.6,3268.9,3.05906]
[1738249497123,0.305847,3269.5,3268.6,3.67177176]
[1738249497427,3.05886,3269.2,3268.6,0.61244176]
[1738249498506,3.05885,3269.3,3268.6,3.67181176]
[1738249498711,3.05885,3269.3,3268.7,3.05929]
[1738249498914,3.364417,3269.5,3268.6,3.67181176]
[1738249498915,3.0,3269.4,3268.8,3.05921]
[1738249499076,0.6364417,3269.4,3268.8,3.05921]
[1738249499262,3.05878,3269.3,3268.6,3.67181176]
[1738249499462,3.05878,3269.3,3268.7,3.05931]
[1738249499827,0.6364417,3269.4,3268.9,3.05905]
[1738249499982,3.05858,3269.5,3268.9,3.05905]
[1738249500181,3.05858,3269.5,3268.7,3.05931]
[1738249500490,3.05939,3268.7,3268.0,0.6463]
[1738249500685,3.05915,3268.9,3268.1,3.05986]
[1738249501081,0.7603,3269.0,3268.0,1.27218015]
[1738249501082,3.05948,3268.6,3268.0,1.27218015]
[1738249501279,3.67440193,3268.6,3268.0,4.33215015]
[1738249501497,0.015,3268.5,3268.0,0.62588015]
[1738249501717,3.05988,3268.1,3268.0,0.62588015]
[1738249501892,3.0601,3267.9,3267.2,3.06066]
[1738249502090,3.06025,3267.7,3267.2,3.67202772]
[1738249502394,3.672285,3267.7,3267.2,3.67202772]
[1738249502596,0.612035,3267.7,3266.8,3.70736]
[1738249502802,3.0605,3267.5,3266.8,3.70736]
[1738249503110,3.0605,3267.5,3266.6,4.05043757]
[1738249503111,3.06075,3267.2,3266.6,0.98918757]
[1738249503331,3.06054,3267.4,3266.8,3.06107]
[1738249503502,6.06045,3267.5,3266.9,3.06094]
[1738249504000,3.06085,3267.1,3266.6,4.05045757]
[1738249504198,3.06048,3267.5,3266.6,0.98918757]
[1738249504456,3.06059,3267.4,3266.7,3.06113]
[1738249504655,3.06059,3267.4,3266.6,0.98918757]
[1738249504656,0.03051929,3267.4,3266.6,0.98918757]
[1738249504803,3.06085,3267.1,3266.6,0.98918757]
[1738249504996,3.06072,3267.3,3266.6,4.05046757]
[1738249505461,3.06072,3267.3,3266.7,3.06116]
[1738249505666,3.672839,3267.3,3266.7,3.06116]
[1738249505965,3.672839,3267.3,3266.6,4.05046757]
[1738249505966,3.06074,3267.2,3266.6,4.05046757]
[1738249506362,3.06096,3267.0,3266.6,0.98918757]
[1738249506750,3.06074,3267.2,3266.6,0.98918757]
[1738249507058,0.612119,3267.3,3266.6,0.98918757]
[1738249507262,3.06065,3267.3,3266.6,4.05040757]
[1738249507424,6.06051,3267.5,3266.6,4.05040757]
[1738249507625,3.06055,3267.4,3266.8,3.06108]
[1738249507930,3.83519,3267.8,3266.9,0.03060986]
[1738249508271,3.06055,3267.4,3266.7,3.61112]
[1738249508410,3.83516,3267.8,3266.8,3.06109]
[1738249508749,13.0,3272.8,3268.1,3.05988]
[1738249508959,13.0,3272.8,3266.7,1.03731349]
[1738249508960,0.7571,3273.7,3271.8,0.55]
[1738249509211,3.05424,3274.2,3274.1,0.1]
[1738249509347,0.7571,3274.2,3274.1,0.1]
[1738249509536,1.138222,3274.2,3274.1,3.45707719]
[1738249509736,3.05446,3273.9,3273.7,3.45707719]
[1738249509995,1.138222,3274.2,3274.0,0.1]
[1738249510150,0.03051929,3274.1,3273.7,3.45707719]
[1738249510504,3.05468,3273.7,3273.3,3.45707719]
[1738249510698,0.0075,3273.6,3273.3,3.45707719]
[1738249510854,3.05488,3273.5,3273.3,3.45707719]
[1738249511202,0.7571,3274.2,3273.1,0.1]
[1738249511203,3.08478929,3274.1,3273.1,0.1]
[1738249511341,3.08478929,3274.1,3272.4,3.05585]
[1738249511342,0.38418893,3274.0,3273.5,0.1]
[1738249511698,3.0546,3273.8,3273.5,0.1]
[1738249512445,0.0075,3273.9,3273.5,0.1]
[1738249512883,3.05533,3273.0,3272.8,0.1]
[1738249513071,3.05563,3272.7,3272.5,0.1]
[1738249513286,3.05563,3272.7,3272.2,0.44662548]
[1738249513287,3.05563,3272.7,3272.3,0.1]
[1738249513595,3.05587,3272.4,3272.2,0.44662548]
[1738249513746,3.05581,3272.5,3272.4,0.1]
[1738249514177,3.05587,3272.4,3272.2,0.54662548]
[1738249514843,3.05587,3272.4,3272.2,0.1]
[1738249515041,0.305563,3272.6,3272.2,0.1]
[1738249515257,3.05568,3272.6,3272.4,0.1]
[1738249516279,3.05502,3273.3,3273.0,0.1]
[1738249516573,3.05548,3272.8,3272.7,0.1]
[1738249517078,3.05595,3272.3,3272.2,0.1]
[1738249517279,0.305595,3272.3,3272.1,0.1]
[1738249517479,3.05632,3271.9,3271.8,0.1]
[1738249517781,3.05656,3271.7,3271.6,0.1]
[1738249519158,3.05643,3271.8,3271.6,0.1]
[1738249519353,3.05651,3271.7,3271.5,0.1]
[1738249519554,3.05679,3271.4,3271.1,0.1]
[1738249519972,3.05697,3271.3,3271.1,0.1]
[1738249520167,3.05679,3271.4,3271.1,0.1]
[1738249520384,0.0075,3271.6,3271.0,0.1]
[1738249520571,3.05707,3271.1,3271.0,0.1]
[1738249526471,3.05707,3271.1,3269.9,1.15637207]
[1738249526472,3.05726,3270.9,3270.8,0.1]
[1738249527289,3.05744,3270.7,3270.6,0.1]
[1738249527666,3.05737,3270.8,3270.6,0.1]
[1738249528164,3.05744,3270.7,3270.6,0.1]
[1738249528766,3.05727,3270.9,3270.6,0.1]
[1738249529164,3.97872374,3271.2,3271.1,0.1]
[1738249529165,4.22372374,3271.2,3271.1,0.1]
[1738249529487,5.03121911,3271.2,3271.1,0.1]
[1738249530165,8.08819911,3271.2,3271.1,0.1]
[1738249530676,7.84319911,3271.2,3271.1,0.1]
[1738249531300,3.05726,3270.9,3270.6,0.1]
[1738249531506,3.05744,3270.7,3270.6,0.1]
[1738249532218,3.05763,3270.5,3270.4,0.1]
[1738249532917,3.05763,3270.5,3270.2,0.1]
[1738249533125,3.05782,3270.3,3270.2,0.1]
[1738249533906,3.05763,3270.5,3270.4,0.1]
[1738249534216,3.05763,3270.5,3270.4,0.17336387]
[1738249534387,4.12846957,3270.5,3270.4,0.07336387]
[1738249534587,3.05782,3270.3,3270.2,0.1]
[1738249535013,3.05782,3270.3,3270.2,0.17346439]
[1738249535201,3.05763,3270.5,3270.4,0.1]
[1738249537008,3.05763,3270.6,3270.4,0.1]
[1738249537332,3.05752,3270.7,3270.6,0.1]
[1738249537536,3.05708,3271.1,3271.0,0.1]
[1738249537729,3.05708,3271.1,3269.7,1.17512242]
[1738249537730,3.05726,3270.9,3270.8,0.1]
[1738249537942,3.05744,3270.7,3270.6,0.1]
[1738249538117,3.05726,3270.9,3270.8,0.1]
[1738249539349,3.05754,3270.6,3270.5,0.1]
[1738249539505,3.05772,3270.4,3270.3,0.1]
[1738249539844,3.05756,3270.6,3270.4,0.1]
[1738249540045,3.05763,3270.5,3270.4,0.1]
[1738249540222,3.05782,3270.3,3270.2,0.1]
[1738249543111,3.0581,3270.0,3269.9,0.1]
[1738249544219,3.05838,3269.7,3269.6,0.1]
[1738249544626,3.05838,3269.7,3269.6,0.15697975]
[1738249545450,3.05838,3269.7,3269.6,0.1]
[1738249545827,3.05838,3269.7,3269.6,0.15526074]
[1738249546523,6.05802,3270.1,3269.8,0.1]
[1738249546725,3.05819,3269.9,3269.6,0.1]
[1738249547035,3.05838,3269.7,3269.6,0.1]
[1738249547238,0.8159,3270.6,3270.4,0.1]
[1738249547239,1.00939137,3270.5,3270.4,0.1]
[1738249547412,3.05791,3270.2,3270.1,0.1]
[1738249547616,3.05806,3270.1,3269.5,3.05854]
[1738249547829,3.0581,3270.0,3269.9,0.1]
[1738249548431,3.05791,3270.2,3269.9,0.1]
[1738249548818,3.05806,3270.1,3269.9,0.1]
[1738249549153,4.80392374,3270.7,3270.2,0.1]
[1738249549315,3.0576,3270.6,3270.4,0.1]
[1738249549524,3.05736,3270.8,3270.7,0.1]
[1738249549722,6.05763,3270.5,3270.4,0.1]
[1738249549919,3.0,3270.5,3270.4,0.1]
[1738249550120,3.05791,3270.2,3269.9,0.1]
[1738249550317,0.03051929,3270.1,3269.8,0.1]
[1738249550549,3.05828,3269.9,3269.7,0.1]
[1738249550748,3.05828,3269.9,3269.8,0.1]
[1738249551100,3.05829,3269.8,3269.7,0.1]
[1738249551599,3.669929,3269.8,3269.7,0.1]
[1738249552499,3.05829,3269.8,3269.7,0.1]
[1738249552849,3.05829,3269.8,3269.7,0.15182953]
[1738249553310,3.05829,3269.8,3269.7,0.1]
[1738249553865,3.05829,3269.8,3269.0,3.28536387]
[1738249554241,3.05863,3269.5,3269.4,0.1]
[1738249554574,3.05831,3269.8,3269.4,0.14691397]
[1738249554879,3.05806,3270.1,3269.9,0.1]
[1738249555103,3.0581,3270.0,3269.9,0.1]
[1738249555306,3.05847,3269.6,3269.5,0.1]
[1738249555507,3.05811,3270.0,3269.7,0.1]
[1738249555667,3.05829,3269.8,3269.7,0.1]
[1738249556071,3.97872374,3270.7,3269.9,0.1]
[1738249556261,0.37802,3270.4,3270.3,0.1]
[1738249556610,3.43574,3270.4,3270.3,0.1]
[1738249557017,6.74900155,3270.5,3270.3,0.1]
[1738249557018,3.45131155,3270.5,3270.3,0.1]
[1738249557322,3.05755,3270.6,3270.5,0.1]
[1738249557662,6.05742,3270.8,3270.7,0.1]
[1738249558057,3.05754,3270.6,3270.5,0.1]
[1738249558262,3.05728,3270.9,3270.7,0.1]
[1738249558555,6.05717,3271.0,3270.9,0.1]
[1738249560593,6.968593,3271.0,3270.9,0.1]
[1738249561203,6.968593,3271.0,3269.9,0.45264862]
[1738249561204,3.05772,3270.5,3270.2,0.1]
[1738249561499,3.05772,3270.5,3269.9,0.55264862]
[1738249561500,3.0581,3270.0,3269.9,0.55264862]
[1738249561674,3.0581,3270.0,3269.9,0.1]
[1738249561895,3.0581,3270.0,3269.9,0.13769876]
[1738249562100,3.0581,3270.0,3269.9,0.1]
[1738249562295,3.05793,3270.2,3269.9,0.1]
[1738249562502,3.05775,3270.4,3270.3,0.1]
[1738249562896,3.05775,3270.4,3269.8,3.05822]
[1738249562897,3.05758,3270.6,3270.5,0.1]
[1738249563337,3.05758,3270.6,3270.5,0.03612815]
[1738249563338,6.669076,3270.6,3270.5,0.03612815]
[1738249563622,3.05829,3269.8,3269.0,3.05897]
[1738249563789,3.05845,3269.7,3269.6,0.1]
[1738249564130,3.669056,3270.6,3270.4,0.1]
[1738249564426,3.05791,3270.2,3270.1,0.1]
[1738249564924,3.05774,3270.4,3270.3,0.1]
[1738249565230,3.05783,3270.3,3270.2,0.1]
[1738249565427,3.05767,3270.5,3270.4,0.1]
[1738249565613,3.05763,3270.5,3270.4,0.1]
[1738249566612,3.05782,3270.3,3270.2,0.1]
[1738249566786,3.05797,3270.2,3270.1,0.1]
[1738249566991,3.05791,3270.2,3270.1,0.1]
[1738249568091,3.0581,3270.0,3269.9,0.1]
[1738249568423,3.05819,3269.9,3269.8,0.1]
[1738249568583,6.05792,3270.2,3270.1,0.1]
[1738249569402,6.05792,3270.2,3269.5,0.1]
[1738249569403,3.05847,3269.6,3269.5,0.1]
[1738249569738,3.670146,3269.6,3269.5,0.13040213]
[1738249569924,3.05847,3269.6,3269.5,0.13040213]
[1738249570128,3.05847,3269.6,3269.5,0.1]
[1738249570325,3.05847,3269.6,3269.5,0.13040213]
[1738249570525,3.05829,3269.8,3269.7,0.1]
[1738249571039,3.05829,3269.8,3269.7,0.12931504]
[1738249571240,3.05829,3269.8,3269.7,0.02931504]
[1738249571439,10.68540198,3269.8,3269.7,0.02931504]
[1738249571625,10.68540198,3269.8,3269.1,0.45342988]
[1738249571626,3.05885,3269.2,3269.1,0.45342988]
[1738249571939,3.05894,3269.1,3269.0,0.1]
[1738249572315,3.0,3269.3,3269.2,0.1]
[1738249572518,3.05866,3269.4,3269.3,0.1]
[1738249572727,6.05866,3269.4,3269.3,0.1]
[1738249573863,6.05885,3269.2,3268.9,0.1]
[1738249574006,6.05903,3269.0,3268.9,0.1]
[1738249574204,3.05932,3268.7,3268.6,0.1]
[1738249576209,3.05932,3268.7,3267.0,0.0075]
[1738249576210,3.0596,3268.4,3268.3,0.1]
[1738249577517,3.29513,3268.9,3268.8,0.1]
[1738249577711,3.05913,3268.9,3268.8,0.1]
[1738249577916,3.05913,3268.9,3268.8,0.0302112]
[1738249577917,6.08964929,3268.9,3268.8,0.0302112]
[1738249578231,3.05941,3268.6,3268.5,0.1]
[1738249578432,3.0596,3268.4,3268.3,0.1]
[1738249580759,6.05978,3268.2,3268.1,0.1]
[1738249581064,3.05997,3268.0,3267.9,0.1]
[1738249581217,6.54647726,3268.0,3267.9,0.1]
[1738249581414,6.51595797,3268.0,3267.9,0.1]
[1738249581655,3.05997,3268.0,3267.9,0.1]
[1738249581867,3.0,3268.2,3268.1,0.1]
[1738249582045,6.05978,3268.2,3268.1,0.1]
[1738249582251,6.05978,3268.2,3268.1,0.03017288]
[1738249582422,7.64983973,3268.2,3268.1,0.03017288]
[1738249582763,3.05997,3268.0,3267.9,0.1]
[1738249582962,6.51595797,3268.0,3267.9,0.1]
[1738249583325,6.75095797,3268.0,3267.9,0.1]
[1738249583722,9.75095797,3268.0,3267.9,0.1]
[1738249583927,3.06016,3267.8,3267.7,0.1]
[1738249584342,3.06016,3267.8,3267.7,0.13036236]
[1738249584553,3.06016,3267.8,3267.7,0.1]
[1738249584947,3.06016,3267.8,3267.7,0.13036236]
[1738249585171,3.06016,3267.8,3267.7,0.1]
[1738249585730,4.3412718,3267.8,3267.7,0.1]
[1738249586089,4.37179109,3267.8,3267.7,0.1]
[1738249586924,4.3412718,3267.8,3267.7,0.1]
[1738249587126,1.2811118,3267.8,3267.4,0.1]
[1738249587329,3.06044,3267.5,3267.4,0.1]
[1738249588575,4.0181118,3267.5,3267.4,0.1]
[1738249588796,3.06091,3267.0,3266.9,0.1]
[1738249589094,10.30081726,3267.0,3266.9,0.1]
[1738249589391,10.27029797,3267.0,3266.9,0.1]
[1738249589733,9.51689797,3267.0,3266.9,0.1]
[1738249589933,9.74989797,3267.0,3266.9,0.1]
[1738249590134,3.0,3267.0,3266.9,0.1]
[1738249590428,9.51689797,3267.0,3266.9,0.1]
[1738249590633,10.7777197,3267.0,3266.9,0.1]
[1738249590875,9.51689797,3267.0,3266.9,0.1]
[1738249591485,6.51655797,3267.4,3267.3,0.1]
[1738249591686,3.45598797,3268.2,3268.0,0.1]
[1738249591963,3.45598797,3268.6,3268.3,0.1]
[1738249592132,3.45598797,3268.6,3268.0,3.05995]
[1738249592133,6.45598797,3268.6,3268.5,0.1]
[1738249592271,9.51539797,3268.6,3268.5,0.1]
[1738249592725,3.0596,3268.4,3268.3,0.1]
[1738249592931,3.45598797,3268.6,3268.5,0.1]
[1738249593076,6.05925,3268.8,3268.7,0.1]
[1738249593976,6.05925,3268.8,3268.0,3.05995]
[1738249594181,3.05925,3268.8,3268.5,0.1]
[1738249594525,3.05932,3268.7,3268.6,0.03022586]
[1738249594727,3.08983929,3268.7,3268.6,0.03022586]